[Event "*** Titled Tuesday Blitz"]
[Site "Chess.com"]
[Date "2020.02.04"]
[Round "6"]
[White "mortngabriel"]
[Black "chessdjw"]
[Result "0-1"]
[WhiteElo "2423"]
[BlackElo "2588"]
[TimeControl "180+2"]
[EndTime "14:17:20 PST"]
[Termination "chessdjw won by checkmate"]

1. d4 {[%clk 0:02:53.7]} 1... Nf6 {[%clk 0:02:54.8]} 2. c4 {[%clk 0:02:51]} 2...
e6 {[%clk 0:02:55.8]} 3. Nc3 {[%clk 0:02:49.9]} 3... Bb4 {[%clk 0:02:55.8]} 4.
Qc2 {[%clk 0:02:48.8]} 4... d5 {[%clk 0:02:52.8]} 5. Bg5 {[%clk 0:02:44.8]} 5...
dxc4 {[%clk 0:02:50.3]} 6. Nf3 {[%clk 0:02:37.1]} 6... b5 {[%clk 0:02:45]} 7. e4
{[%clk 0:02:36.9]} 7... h6 {[%clk 0:02:44.5]} 8. Bxf6 {[%clk 0:02:23.4]} 8...
gxf6 {[%clk 0:02:45.3]} 9. a4 {[%clk 0:02:16.5]} 9... Nc6 {[%clk 0:02:32.6]} 10.
axb5 {[%clk 0:01:32.2]} 10... Nxd4 {[%clk 0:02:33.4]} 11. Nxd4 {[%clk
0:01:32.4]} 11... Qxd4 {[%clk 0:02:33.9]} 12. Rd1 {[%clk 0:00:46.4]} 12... Bxc3+
{[%clk 0:02:33.3]} 13. bxc3 {[%clk 0:00:46.9]} 13... Qc5 {[%clk 0:02:34.1]} 14.
Qa4 {[%clk 0:00:36.7]} 14... Bb7 {[%clk 0:02:29.2]} 15. Bxc4 {[%clk 0:00:25.6]}
15... O-O {[%clk 0:02:20.9]} 16. O-O {[%clk 0:00:22.6]} 16... Rfd8 {[%clk
0:02:09.7]} 17. Be2 {[%clk 0:00:05.8]} 17... Qxc3 {[%clk 0:02:06.5]} 18. Rc1
{[%clk 0:00:05.6]} 18... Qe5 {[%clk 0:02:06]} 19. Bf3 {[%clk 0:00:05.3]} 19...
Rd4 {[%clk 0:02:02.7]} 20. Qa5 {[%clk 0:00:06]} 20... c6 {[%clk 0:01:46.6]} 21.
Rb1 {[%clk 0:00:02.1]} 21... c5 {[%clk 0:01:42.8]} 22. Rb2 {[%clk 0:00:02.1]}
22... Bxe4 {[%clk 0:01:40]} 23. Rfb1 {[%clk 0:00:04]} 23... Bxf3 {[%clk
0:01:40.4]} 24. gxf3 {[%clk 0:00:05.6]} 24... Kh7 {[%clk 0:01:40.6]} 25. Kf1
{[%clk 0:00:06.8]} 25... Qxh2 {[%clk 0:01:37.8]} 26. Qe1 {[%clk 0:00:05.6]}
26... Rad8 {[%clk 0:01:33.4]} 27. Qe3 {[%clk 0:00:05.6]} 27... R8d5 {[%clk
0:01:31.6]} 28. Rc2 {[%clk 0:00:03.4]} 28... Re5 {[%clk 0:01:27.3]} 29. Qc3
{[%clk 0:00:03.9]} 29... Qh1# {[%clk 0:01:27.8]} 0-1

[Event "*** Titled Tuesday Blitz"]
[Site "Chess.com"]
[Date "2020.02.04"]
[Round "6"]
[White "Zkid"]
[Black "Aygehovit1992"]
[Result "1-0"]
[WhiteElo "2838"]
[BlackElo "2660"]
[TimeControl "180+2"]
[EndTime "14:17:24 PST"]
[Termination "Zkid won on time"]

1. e4 {[%clk 0:02:57.8]} 1... d6 {[%clk 0:03:00.6]} 2. d4 {[%clk 0:02:58.7]}
2... g6 {[%clk 0:03:01.3]} 3. Nc3 {[%clk 0:02:59.9]} 3... Bg7 {[%clk 0:03:02.6]}
4. Be3 {[%clk 0:03:01.6]} 4... c6 {[%clk 0:03:03.9]} 5. Qd2 {[%clk 0:03:02.4]}
5... b5 {[%clk 0:03:04.7]} 6. a3 {[%clk 0:03:03.9]} 6... Nd7 {[%clk 0:03:05.5]}
7. h4 {[%clk 0:03:04.7]} 7... h5 {[%clk 0:03:05.6]} 8. d5 {[%clk 0:03:00.9]}
8... cxd5 {[%clk 0:02:57.3]} 9. Qxd5 {[%clk 0:03:01.1]} 9... Rb8 {[%clk
0:02:57.7]} 10. Bxa7 {[%clk 0:02:58]} 10... Rb7 {[%clk 0:02:53.3]} 11. Bd4
{[%clk 0:02:46]} 11... Ngf6 {[%clk 0:02:53.7]} 12. Bxf6 {[%clk 0:02:42.2]} 12...
Bxf6 {[%clk 0:02:38.5]} 13. Bxb5 {[%clk 0:02:40.6]} 13... O-O {[%clk 0:02:36.8]}
14. Nge2 {[%clk 0:02:40.5]} 14... Ne5 {[%clk 0:02:17.3]} 15. a4 {[%clk
0:02:29.4]} 15... Qa5 {[%clk 0:01:40.7]} 16. g3 {[%clk 0:02:15.6]} 16... Qa7
{[%clk 0:00:31.7]} 17. O-O {[%clk 0:02:03.9]} 17... Be6 {[%clk 0:00:29.9]} 18.
Qd1 {[%clk 0:01:59.8]} 18... Bg4 {[%clk 0:00:16.4]} 19. Nd5 {[%clk 0:01:31.1]}
19... Bf3 {[%clk 0:00:16.4]} 20. Nxf6+ {[%clk 0:01:29.7]} 20... exf6 {[%clk
0:00:17.9]} 21. Qd4 {[%clk 0:01:26.7]} 21... Qb8 {[%clk 0:00:06.8]} 22. Qe3
{[%clk 0:01:09.2]} 22... Qc8 {[%clk 0:00:03.8]} 23. Nd4 {[%clk 0:01:08.7]} 1-0

[Event "*** Titled Tuesday Blitz"]
[Site "Chess.com"]
[Date "2020.02.04"]
[Round "6"]
[White "BeanScreen"]
[Black "Korchmar_Vasiliy"]
[Result "0-1"]
[WhiteElo "2586"]
[BlackElo "2799"]
[TimeControl "180+2"]
[EndTime "14:17:26 PST"]
[Termination "Korchmar_Vasiliy won by checkmate"]

1. e4 {[%clk 0:03:01.5]} 1... c5 {[%clk 0:03:01.1]} 2. Nf3 {[%clk 0:03:02.3]}
2... d6 {[%clk 0:03:02.5]} 3. d4 {[%clk 0:03:02.8]} 3... cxd4 {[%clk 0:03:04.4]}
4. Nxd4 {[%clk 0:03:04.7]} 4... Nf6 {[%clk 0:03:05.5]} 5. Nc3 {[%clk 0:03:06.2]}
5... Nc6 {[%clk 0:03:07.2]} 6. Bg5 {[%clk 0:03:07.3]} 6... e6 {[%clk 0:03:07.8]}
7. Bb5 {[%clk 0:03:08.5]} 7... Bd7 {[%clk 0:03:08]} 8. Qd3 {[%clk 0:03:09.3]}
8... Be7 {[%clk 0:02:59.3]} 9. O-O-O {[%clk 0:03:09.5]} 9... O-O {[%clk
0:03:00]} 10. Bxc6 {[%clk 0:03:11.1]} 10... bxc6 {[%clk 0:03:00]} 11. Nb3 {[%clk
0:03:12.5]} 11... e5 {[%clk 0:02:53.4]} 12. Bxf6 {[%clk 0:03:10.6]} 12... gxf6
{[%clk 0:02:55.3]} 13. f4 {[%clk 0:02:58.8]} 13... a5 {[%clk 0:02:52.4]} 14. f5
{[%clk 0:02:19.7]} 14... Kh8 {[%clk 0:02:50.6]} 15. Qe3 {[%clk 0:02:17.3]} 15...
a4 {[%clk 0:02:30.4]} 16. Nd2 {[%clk 0:02:18.2]} 16... a3 {[%clk 0:02:32]} 17.
b3 {[%clk 0:02:19.3]} 17... Bc8 {[%clk 0:02:31.4]} 18. Qh6 {[%clk 0:01:50.1]}
18... Rg8 {[%clk 0:02:19.3]} 19. Rhe1 {[%clk 0:01:40.2]} 19... d5 {[%clk
0:02:20.1]} 20. Re3 {[%clk 0:01:23.6]} 20... d4 {[%clk 0:01:49.7]} 21. Rh3
{[%clk 0:01:24.4]} 21... Rg7 {[%clk 0:01:51.3]} 22. Ne2 {[%clk 0:01:22.8]} 22...
Ba6 {[%clk 0:01:51.5]} 23. Ng3 {[%clk 0:01:23.5]} 23... Bf8 {[%clk 0:01:40.2]}
24. Qh4 {[%clk 0:01:23.4]} 24... d3 {[%clk 0:01:26.5]} 25. Nh5 {[%clk
0:01:23.5]} 25... Qd4 {[%clk 0:01:25]} 26. Nc4 {[%clk 0:00:14.5]} 26... d2+
{[%clk 0:01:26.1]} 27. Kb1 {[%clk 0:00:13.8]} 27... Bxc4 {[%clk 0:01:27.4]} 28.
c3 {[%clk 0:00:15.4]} 28... Bd3+ {[%clk 0:01:27.3]} 29. Rxd3 {[%clk 0:00:08.8]}
29... Qxd3+ {[%clk 0:01:29.2]} 30. Ka1 {[%clk 0:00:10.2]} 30... Qxc3+ {[%clk
0:01:30.8]} 31. Kb1 {[%clk 0:00:11.8]} 31... Qb2# {[%clk 0:01:32.7]} 0-1

[Event "*** Titled Tuesday Blitz"]
[Site "Chess.com"]
[Date "2020.02.04"]
[Round "6"]
[White "Playgood28"]
[Black "Witik"]
[Result "0-1"]
[WhiteElo "2275"]
[BlackElo "2586"]
[TimeControl "180+2"]
[EndTime "14:17:30 PST"]
[Termination "Witik won by resignation"]

1. d4 {[%clk 0:03:01.9]} 1... f5 {[%clk 0:02:52.6]} 2. Nf3 {[%clk 0:03:00.9]}
2... Nf6 {[%clk 0:02:53.2]} 3. g3 {[%clk 0:03:01.6]} 3... g6 {[%clk 0:02:54.2]}
4. Bg2 {[%clk 0:03:02.7]} 4... Bg7 {[%clk 0:02:55.4]} 5. O-O {[%clk 0:03:02.5]}
5... O-O {[%clk 0:02:56.7]} 6. c4 {[%clk 0:03:03.8]} 6... d6 {[%clk 0:02:57.6]}
7. Nc3 {[%clk 0:03:04.5]} 7... c6 {[%clk 0:02:58.6]} 8. d5 {[%clk 0:03:04.8]}
8... Qe8 {[%clk 0:02:58]} 9. Nd4 {[%clk 0:02:59.2]} 9... Bd7 {[%clk 0:02:58.7]}
10. h3 {[%clk 0:02:54.6]} 10... Na6 {[%clk 0:02:59.2]} 11. Be3 {[%clk
0:02:54.3]} 11... Nc7 {[%clk 0:02:48.2]} 12. Qd2 {[%clk 0:02:35.9]} 12... c5
{[%clk 0:02:44.1]} 13. Ne6 {[%clk 0:02:23.9]} 13... Nxe6 {[%clk 0:02:44.6]} 14.
dxe6 {[%clk 0:02:24.6]} 14... Bxe6 {[%clk 0:02:46.5]} 15. Bxb7 {[%clk
0:02:24.7]} 15... Bxc4 {[%clk 0:02:47.2]} 16. Bxa8 {[%clk 0:01:54.3]} 16... Qxa8
{[%clk 0:02:49.1]} 17. Bh6 {[%clk 0:01:54]} 17... Bxh6 {[%clk 0:01:53.6]} 18.
Qxh6 {[%clk 0:01:52.2]} 18... Qc6 {[%clk 0:01:47.4]} 19. b3 {[%clk 0:01:48.5]}
19... Ba6 {[%clk 0:01:48]} 20. f3 {[%clk 0:01:43.7]} 20... d5 {[%clk 0:01:47.3]}
21. Rac1 {[%clk 0:01:37.8]} 21... d4 {[%clk 0:01:41.4]} 22. Na4 {[%clk
0:01:37.5]} 22... Bxe2 {[%clk 0:01:42.1]} 23. Rxc5 {[%clk 0:01:34.7]} 23... Qd6
{[%clk 0:01:42.3]} 24. Rf2 {[%clk 0:00:58.8]} 24... Qxg3+ {[%clk 0:01:37.5]} 25.
Rg2 {[%clk 0:01:00.1]} 25... Qe1+ {[%clk 0:01:25.9]} 26. Kh2 {[%clk 0:01:00]}
26... Bxf3 {[%clk 0:01:26.7]} 27. Rc1 {[%clk 0:00:22.1]} 27... Qe5+ {[%clk
0:01:23.6]} 28. Rg3 {[%clk 0:00:22.5]} 28... Ne4 {[%clk 0:01:22.9]} 29. Rg1
{[%clk 0:00:19.7]} 29... Nxg3 {[%clk 0:01:22.1]} 30. Rxg3 {[%clk 0:00:20.2]}
30... Qe2+ {[%clk 0:01:22.8]} 31. Kg1 {[%clk 0:00:20]} 31... Qe1+ {[%clk
0:01:23.9]} 0-1

[Event "*** Titled Tuesday Blitz"]
[Site "Chess.com"]
[Date "2020.02.04"]
[Round "6"]
[White "earling8018"]
[Black "novocane"]
[Result "1-0"]
[WhiteElo "2059"]
[BlackElo "2130"]
[TimeControl "180+2"]
[EndTime "14:17:34 PST"]
[Termination "earling8018 won on time"]

1. c4 {[%clk 0:03:01.9]} 1... e5 {[%clk 0:02:59.9]} 2. Nc3 {[%clk 0:03:02.8]}
2... Bb4 {[%clk 0:03:01.5]} 3. d3 {[%clk 0:03:01.6]} 3... Bxc3+ {[%clk
0:03:00.4]} 4. bxc3 {[%clk 0:03:02]} 4... Nc6 {[%clk 0:03:02.1]} 5. e4 {[%clk
0:03:03.4]} 5... d6 {[%clk 0:03:02.3]} 6. Be2 {[%clk 0:03:02.8]} 6... Nge7
{[%clk 0:03:03.4]} 7. f4 {[%clk 0:03:03.6]} 7... f6 {[%clk 0:03:03.6]} 8. Nf3
{[%clk 0:03:02.9]} 8... Be6 {[%clk 0:03:03.6]} 9. O-O {[%clk 0:03:02.3]} 9...
O-O {[%clk 0:02:36.5]} 10. d4 {[%clk 0:03:03.1]} 10... Na5 {[%clk 0:02:33.1]}
11. Qa4 {[%clk 0:02:38.1]} 11... c5 {[%clk 0:02:01.6]} 12. fxe5 {[%clk
0:02:16.8]} 12... dxe5 {[%clk 0:01:17.7]} 13. dxe5 {[%clk 0:02:08.5]} 13... Nec6
{[%clk 0:00:51.6]} 14. Rd1 {[%clk 0:01:46.6]} 14... Qe8 {[%clk 0:00:38.2]} 15.
exf6 {[%clk 0:01:31.3]} 15... Rxf6 {[%clk 0:00:29.2]} 16. Rd5 {[%clk 0:01:23.4]}
16... Bxd5 {[%clk 0:00:19.7]} 17. cxd5 {[%clk 0:01:24.1]} 17... Ne5 {[%clk
0:00:05.2]} 18. Qxa5 {[%clk 0:01:09.4]} 18... Ng4 {[%clk 0:00:02.4]} 19. Qxc5
{[%clk 0:01:04.1]} 19... Qxe4 {[%clk 0:00:02.8]} 20. Qd4 {[%clk 0:00:57.2]}
20... Qg6 {[%clk 0:00:02.3]} 21. Bg5 {[%clk 0:00:47.1]} 1-0

[Event "*** Titled Tuesday Blitz"]
[Site "Chess.com"]
[Date "2020.02.04"]
[Round "6"]
[White "Eloist"]
[Black "goldenspine"]
[Result "0-1"]
[WhiteElo "2234"]
[BlackElo "2336"]
[TimeControl "180+2"]
[EndTime "14:17:36 PST"]
[Termination "goldenspine won by checkmate"]

1. e4 {[%clk 0:02:52.4]} 1... c6 {[%clk 0:03:00.7]} 2. Nf3 {[%clk 0:02:51.3]}
2... d5 {[%clk 0:03:02]} 3. Nc3 {[%clk 0:02:52.1]} 3... Bg4 {[%clk 0:02:55.2]}
4. d4 {[%clk 0:02:52.4]} 4... dxe4 {[%clk 0:02:35.2]} 5. Nxe4 {[%clk 0:02:53.2]}
5... Nd7 {[%clk 0:02:36.8]} 6. h3 {[%clk 0:02:45.9]} 6... Bh5 {[%clk 0:02:35.1]}
7. Bd3 {[%clk 0:02:34.6]} 7... Ngf6 {[%clk 0:02:32.9]} 8. c3 {[%clk 0:02:33.3]}
8... Nxe4 {[%clk 0:02:33]} 9. Bxe4 {[%clk 0:02:33.9]} 9... Nf6 {[%clk
0:02:34.2]} 10. Bc2 {[%clk 0:02:30.7]} 10... e6 {[%clk 0:02:34.5]} 11. O-O
{[%clk 0:02:28.2]} 11... Qd5 {[%clk 0:01:54]} 12. g4 {[%clk 0:02:19.1]} 12...
Bg6 {[%clk 0:01:53.1]} 13. Bb3 {[%clk 0:02:14.3]} 13... Qa5 {[%clk 0:01:27.9]}
14. Ne5 {[%clk 0:02:12.8]} 14... Bd6 {[%clk 0:01:01.6]} 15. Bf4 {[%clk
0:02:03.5]} 15... Bxe5 {[%clk 0:00:42]} 16. Bxe5 {[%clk 0:02:01.6]} 16... O-O-O
{[%clk 0:00:27.7]} 17. Qf3 {[%clk 0:01:58.4]} 17... Be4 {[%clk 0:00:26.8]} 18.
Qf4 {[%clk 0:01:56.4]} 18... Bd5 {[%clk 0:00:23.8]} 19. Bxf6 {[%clk 0:01:51.9]}
19... gxf6 {[%clk 0:00:25.7]} 20. Qxf6 {[%clk 0:01:51]} 20... h5 {[%clk
0:00:23.8]} 21. g5 {[%clk 0:01:43.8]} 21... Rdg8 {[%clk 0:00:20.3]} 22. h4
{[%clk 0:01:40]} 22... Be4 {[%clk 0:00:20.8]} 23. Qxf7 {[%clk 0:01:36.6]} 23...
Kb8 {[%clk 0:00:20.6]} 24. Qxe6 {[%clk 0:01:34.2]} 24... Re8 {[%clk 0:00:20.9]}
25. Qd6+ {[%clk 0:01:28.7]} 25... Ka8 {[%clk 0:00:19.2]} 26. Qc5 {[%clk
0:01:20.1]} 26... Qc7 {[%clk 0:00:19.6]} 27. f4 {[%clk 0:01:19.7]} 27... Qd7
{[%clk 0:00:20.1]} 28. f5 {[%clk 0:01:12]} 28... Qc7 {[%clk 0:00:20.9]} 29. Rf2
{[%clk 0:01:01.4]} 29... Qg3+ {[%clk 0:00:21.6]} 30. Kf1 {[%clk 0:01:02.3]}
30... Bd3+ {[%clk 0:00:22.1]} 31. Re2 {[%clk 0:01:02.4]} 31... Bxe2# {[%clk
0:00:23.6]} 0-1

[Event "*** Titled Tuesday Blitz"]
[Site "Chess.com"]
[Date "2020.02.04"]
[Round "6"]
[White "pawnwonder"]
[Black "TheBigBoss04"]
[Result "0-1"]
[WhiteElo "2173"]
[BlackElo "2663"]
[TimeControl "180+2"]
[EndTime "14:17:41 PST"]
[Termination "TheBigBoss04 won by resignation"]

1. e4 {[%clk 0:03:00.8]} 1... c5 {[%clk 0:03:01.4]} 2. Nf3 {[%clk 0:03:01.2]}
2... Nc6 {[%clk 0:03:03.1]} 3. Bb5 {[%clk 0:03:01.3]} 3... d6 {[%clk 0:03:03.3]}
4. O-O {[%clk 0:02:55.2]} 4... Bd7 {[%clk 0:03:04]} 5. Re1 {[%clk 0:02:49.5]}
5... Nf6 {[%clk 0:03:04.3]} 6. h3 {[%clk 0:02:50.3]} 6... a6 {[%clk 0:03:04.8]}
7. Bf1 {[%clk 0:02:50.8]} 7... g6 {[%clk 0:03:03.2]} 8. c3 {[%clk 0:02:51.5]}
8... Bg7 {[%clk 0:03:04.2]} 9. d4 {[%clk 0:02:52.4]} 9... O-O {[%clk 0:03:05.4]}
10. d5 {[%clk 0:02:39.3]} 10... Ne5 {[%clk 0:02:58.4]} 11. Nxe5 {[%clk
0:02:39.4]} 11... dxe5 {[%clk 0:02:56.9]} 12. c4 {[%clk 0:02:36.2]} 12... Ne8
{[%clk 0:02:56.8]} 13. Be3 {[%clk 0:02:35.7]} 13... Rc8 {[%clk 0:02:57.6]} 14.
Nc3 {[%clk 0:02:35.9]} 14... Nd6 {[%clk 0:02:59.2]} 15. f3 {[%clk 0:02:17.2]}
15... f5 {[%clk 0:02:59.2]} 16. Qd2 {[%clk 0:02:06.3]} 16... b5 {[%clk
0:02:57.9]} 17. cxb5 {[%clk 0:02:01.4]} 17... axb5 {[%clk 0:02:59.8]} 18. Bf2
{[%clk 0:01:57.1]} 18... b4 {[%clk 0:02:59.1]} 19. Nd1 {[%clk 0:01:57.3]} 19...
Qa5 {[%clk 0:02:44.3]} 20. b3 {[%clk 0:01:45.2]} 20... Rf7 {[%clk 0:02:37.2]}
21. Nb2 {[%clk 0:01:41.8]} 21... Nb5 {[%clk 0:02:35.3]} 22. a3 {[%clk
0:01:14.8]} 22... Nd4 {[%clk 0:02:32.4]} 23. Bxd4 {[%clk 0:01:14]} 23... exd4
{[%clk 0:02:32]} 24. Nc4 {[%clk 0:01:15.2]} 24... Qc7 {[%clk 0:02:26.4]} 25.
axb4 {[%clk 0:01:15.5]} 25... fxe4 {[%clk 0:02:26.7]} 26. fxe4 {[%clk
0:01:06.1]} 26... cxb4 {[%clk 0:02:27.9]} 27. e5 {[%clk 0:01:03.8]} 27... e6
{[%clk 0:02:20.7]} 28. Qxd4 {[%clk 0:00:53.8]} 28... exd5 {[%clk 0:02:20.3]} 29.
Nd6 {[%clk 0:00:26.1]} 29... Qxd6 {[%clk 0:02:20]} 30. Ra7 {[%clk 0:00:15.7]}
30... Qc5 {[%clk 0:02:06.2]} 31. Qxc5 {[%clk 0:00:16.5]} 31... Rxc5 {[%clk
0:02:08.1]} 32. e6 {[%clk 0:00:17]} 32... Bd4+ {[%clk 0:02:01.8]} 33. Kh1 {[%clk
0:00:17.3]} 33... Bxe6 {[%clk 0:02:03.5]} 34. Ra8+ {[%clk 0:00:18.2]} 34... Kg7
{[%clk 0:02:04]} 35. Bb5 {[%clk 0:00:18]} 35... Rxb5 {[%clk 0:02:03]} 36. Rxe6
{[%clk 0:00:18.7]} 36... Rc5 {[%clk 0:01:57.1]} 0-1

[Event "*** Titled Tuesday Blitz"]
[Site "Chess.com"]
[Date "2020.02.04"]
[Round "6"]
[White "Chesstrainer1"]
[Black "Galiev_Azat"]
[Result "1-0"]
[WhiteElo "2363"]
[BlackElo "2255"]
[TimeControl "180+2"]
[EndTime "14:17:42 PST"]
[Termination "Chesstrainer1 won by resignation"]

1. Nf3 {[%clk 0:03:01.9]} 1... Nf6 {[%clk 0:02:52]} 2. c4 {[%clk 0:03:02.5]}
2... c5 {[%clk 0:02:50.4]} 3. Nc3 {[%clk 0:03:01.6]} 3... Nc6 {[%clk 0:02:49.7]}
4. g3 {[%clk 0:02:58.8]} 4... d5 {[%clk 0:02:50.6]} 5. cxd5 {[%clk 0:02:59]}
5... Nxd5 {[%clk 0:02:52.5]} 6. Bg2 {[%clk 0:02:59.8]} 6... Nc7 {[%clk
0:02:53.4]} 7. O-O {[%clk 0:02:41]} 7... e5 {[%clk 0:02:50.5]} 8. a3 {[%clk
0:02:41.1]} 8... Be7 {[%clk 0:02:43.4]} 9. b4 {[%clk 0:02:34.5]} 9... cxb4
{[%clk 0:02:33.5]} 10. axb4 {[%clk 0:02:35.2]} 10... Bxb4 {[%clk 0:02:22.5]} 11.
Nxe5 {[%clk 0:02:33.1]} 11... Nxe5 {[%clk 0:01:26.9]} 12. Qa4+ {[%clk
0:02:31.7]} 12... Bd7 {[%clk 0:01:17.2]} 13. Qxb4 {[%clk 0:02:31.8]} 13... Bc6
{[%clk 0:01:18.2]} 14. Ba3 {[%clk 0:02:04.2]} 14... Bxg2 {[%clk 0:01:02.7]} 15.
Kxg2 {[%clk 0:02:06.1]} 15... b6 {[%clk 0:00:51]} 16. Qe4 {[%clk 0:02:00.5]}
16... Qf6 {[%clk 0:00:21.3]} 17. f4 {[%clk 0:01:37.9]} 17... Qc6 {[%clk
0:00:18.3]} 18. fxe5 {[%clk 0:01:37]} 18... Qxe4+ {[%clk 0:00:18.6]} 19. Nxe4
{[%clk 0:01:38.9]} 19... Nb5 {[%clk 0:00:11.1]} 20. Bd6 {[%clk 0:01:16]} 20...
Rc8 {[%clk 0:00:05.7]} 21. e3 {[%clk 0:01:03.2]} 21... f5 {[%clk 0:00:02.8]} 22.
exf6 {[%clk 0:01:02.8]} 22... Kd7 {[%clk 0:00:02.6]} 23. fxg7 {[%clk 0:00:59.8]}
23... Rhg8 {[%clk 0:00:04]} 24. Bf8 {[%clk 0:01:00.8]} 24... Ke6 {[%clk
0:00:04.4]} 25. Ng5+ {[%clk 0:01:00.4]} 25... Kd5 {[%clk 0:00:05.2]} 26. Rf5+
{[%clk 0:00:58.7]} 26... Kc4 {[%clk 0:00:05.8]} 27. Rc1+ {[%clk 0:00:59.3]}
27... Kd3 {[%clk 0:00:06.2]} 28. Rxc8 {[%clk 0:00:59.8]} 1-0

[Event "*** Titled Tuesday Blitz"]
[Site "Chess.com"]
[Date "2020.02.04"]
[Round "6"]
[White "FrogMist"]
[Black "francyIM"]
[Result "0-1"]
[WhiteElo "2394"]
[BlackElo "2591"]
[TimeControl "180+2"]
[EndTime "14:17:47 PST"]
[Termination "francyIM won by resignation"]

1. e4 {[%clk 0:03:00]} 1... e5 {[%clk 0:02:56.6]} 2. Nf3 {[%clk 0:03:00.5]} 2...
Nc6 {[%clk 0:02:57.4]} 3. Bb5 {[%clk 0:03:01.7]} 3... a6 {[%clk 0:02:57.8]} 4.
Ba4 {[%clk 0:03:02.8]} 4... Nf6 {[%clk 0:02:57.4]} 5. O-O {[%clk 0:03:03.7]}
5... Be7 {[%clk 0:02:58.9]} 6. Re1 {[%clk 0:03:04.8]} 6... b5 {[%clk 0:02:59]}
7. Bb3 {[%clk 0:03:05.6]} 7... O-O {[%clk 0:03:00.1]} 8. a4 {[%clk 0:03:06.2]}
8... d5 {[%clk 0:03:00.7]} 9. exd5 {[%clk 0:03:05.7]} 9... Na5 {[%clk
0:03:01.2]} 10. Nxe5 {[%clk 0:03:00.8]} 10... Nxb3 {[%clk 0:03:01]} 11. Nc6
{[%clk 0:02:54.9]} 11... Bg4 {[%clk 0:03:00.7]} 12. f3 {[%clk 0:02:41.7]} 12...
Bc5+ {[%clk 0:02:59.5]} 13. d4 {[%clk 0:02:36.1]} 13... Qxd5 {[%clk 0:02:53.4]}
14. cxb3 {[%clk 0:02:26]} 14... Qxc6 {[%clk 0:02:49]} 15. dxc5 {[%clk
0:02:26.8]} 15... Rad8 {[%clk 0:02:45.3]} 16. Qc2 {[%clk 0:02:25.3]} 16... Bh5
{[%clk 0:02:45.4]} 17. axb5 {[%clk 0:02:23.4]} 17... axb5 {[%clk 0:02:45.3]} 18.
Be3 {[%clk 0:02:19]} 18... Bg6 {[%clk 0:02:45.6]} 19. Qf2 {[%clk 0:02:18.2]}
19... Nd5 {[%clk 0:02:46.4]} 20. Bd4 {[%clk 0:02:12.8]} 20... Nb4 {[%clk
0:02:47.2]} 21. Qh4 {[%clk 0:01:42.3]} 21... Nc2 {[%clk 0:02:44.2]} 22. Na3
{[%clk 0:01:18.2]} 22... Rxd4 {[%clk 0:02:36.7]} 23. Qf2 {[%clk 0:01:14.4]}
23... Nxa1 {[%clk 0:02:37.2]} 24. Qxd4 {[%clk 0:01:09.8]} 24... Nxb3 {[%clk
0:02:35.8]} 25. Qb4 {[%clk 0:01:08.1]} 25... Qxc5+ {[%clk 0:02:34.9]} 26. Qxc5
{[%clk 0:01:07.9]} 26... Nxc5 {[%clk 0:02:36.8]} 27. Nxb5 {[%clk 0:01:09.8]}
27... Nd3 {[%clk 0:02:36.1]} 28. Re7 {[%clk 0:01:08]} 28... c6 {[%clk 0:02:32]}
29. Nd6 {[%clk 0:01:00.4]} 29... Rd8 {[%clk 0:02:30.2]} 30. Nc4 {[%clk
0:00:56.7]} 30... h5 {[%clk 0:02:28.4]} 31. h4 {[%clk 0:00:57.3]} 31... Rb8
{[%clk 0:02:24.9]} 32. Rc7 {[%clk 0:00:52.7]} 32... c5 {[%clk 0:02:25]} 33. Kh2
{[%clk 0:00:49.7]} 33... Rb4 {[%clk 0:02:24.8]} 34. Nd6 {[%clk 0:00:27.6]} 34...
Rxb2 {[%clk 0:02:22.5]} 35. f4 {[%clk 0:00:28.4]} 35... Nxf4 {[%clk 0:02:21.8]}
36. Rxc5 {[%clk 0:00:25.4]} 36... Rxg2+ {[%clk 0:02:19.8]} 37. Kh1 {[%clk
0:00:26.5]} 37... Rd2 {[%clk 0:02:20.3]} 38. Rc8+ {[%clk 0:00:24.6]} 38... Kh7
{[%clk 0:02:20.1]} 39. Nc4 {[%clk 0:00:25.6]} 39... Be4+ {[%clk 0:02:15]} 40.
Kg1 {[%clk 0:00:26.7]} 40... Nh3+ {[%clk 0:02:13]} 41. Kf1 {[%clk 0:00:26.9]}
41... Bd3+ {[%clk 0:02:13.4]} 42. Ke1 {[%clk 0:00:27.9]} 42... Re2+ {[%clk
0:02:14.8]} 43. Kd1 {[%clk 0:00:29]} 43... Nf2+ {[%clk 0:02:15.6]} 44. Kc1
{[%clk 0:00:29.8]} 44... Rc2+ {[%clk 0:02:16.6]} 45. Kb1 {[%clk 0:00:31.5]}
45... Rxc4+ {[%clk 0:02:17.3]} 46. Ka1 {[%clk 0:00:32.5]} 46... Rxc8 {[%clk
0:02:17.9]} 0-1